fUSD/lending_fUSD_20250610
["ID","MTS","AMOUNT","RATE_DAILY","PERIOD"]
[365176853,1749514593266,150.0,0.00017052,5]
[365176854,1749514599282,1000.0,0.00015903,2]
[365176855,1749514604130,150.0,0.00024657,120]
[365176856,1749514604799,-260.72443928,0.00016273,2]
[365176857,1749514608054,-89.38752098,0.00016273,2]
[365176858,1749514608077,-200.0,0.00016309,2]
[365176859,1749514608101,-1.0141413,0.00016337,2]
[365176860,1749514641993,-358.55450744,0.00016064,2]
[365176861,1749514647508,-141.44549256,0.00016064,2]
[365176862,1749514647533,-84.80240662,0.00016337,2]
[365176863,1749514649795,-104.7793927,0.00016337,2]
[365176864,1749514649820,-190.5959406,0.00016338,2]
[365176865,1749514649845,-43.83137557,0.00016338,2]
[365176867,1749514651797,-146.76456503,0.00016338,2]
[365176868,1749514651821,-166.27,0.00016432,2]
[365176869,1749514651847,-177.12686409,0.00016436,2]
[365176870,1749514653855,-188.56411108,0.00016436,2]
[365176871,1749514689598,-200.97259269,0.00016436,2]
[365176872,1749514691348,-250.07906943,0.00016436,2]
[365176873,1749514693729,-151.0,0.00016436,2]
[365176874,1749514697105,-232.25736271,0.00016436,2]
[365176875,1749514697129,-181.34848935,0.00016437,2]
[365176876,1749514698640,-181.34848935,0.00016437,2]
[365176877,1749514700896,-137.3030213,0.00016437,2]
[365176878,1749514700923,-33.45766688,0.00016437,2]
[365176879,1749514704097,-403.90807712,0.00016437,2]
[365176880,1749514707893,-62.634256,0.00016437,2]
[365176881,1749514707920,-125.88109181,0.00016437,2]
[365176882,1749514710891,-191.47081547,0.00016437,2]
[365176884,1749514713580,-182.64809272,0.00016437,2]
[365176885,1749514713606,-97.45003177,0.00016437,2]
[365176886,1749514715607,-151.0,0.00016437,2]
[365176887,1749514717912,-251.54996823,0.00016437,2]
[365176888,1749514717937,-269.45003177,0.00016437,2]
[365176889,1749514718745,-230.54996823,0.00016437,2]
[365176890,1749514718768,-96.94786904,0.00016437,2]
[365176891,1749514721490,-162.9968046,0.00016437,2]
[365176892,1749514724337,-240.05532636,0.00016437,2]
[365176893,1749514724375,-229.70802035,0.00016437,2]
[365176894,1749514725359,-229.70802035,0.00016437,2]
[365176895,1749514727014,-615.16697196,0.00016355,2]
[365176896,1749514728800,-204.87393609,0.00016355,2]
[365176897,1749514732392,-377.54238392,0.00016355,2]
[365176898,1749514736100,-259.88651503,0.00016355,2]
[365176899,1749514736125,-40.5839593,0.00016437,2]
[365176900,1749514736151,-107.45587428,0.00016437,2]
[365176901,1749514738788,-156.81968863,0.00016437,2]
[365176902,1749514741048,-203.76515372,0.00016437,2]
[365176903,1749514747826,1084.456964,7.945e-05,2]
[365176904,1749514747851,3322.084521,7.945e-05,2]
[365176905,1749514764008,-170.61,0.000162,2]
[365176906,1749514766403,-151.26219868,0.000162,2]
[365176907,1749514768881,-178.12780132,0.000162,2]
[365176908,1749514768906,-31.95928337,0.00016437,2]
[365176909,1749514768929,-56.09740645,0.00016437,2]
[365176911,1749514771765,-173.224352,0.00016437,2]
[365176912,1749514773785,-267.77126462,0.00016437,2]
[365176913,1749514796562,-186.88879322,0.00016174,2]
[365176914,1749514799582,-176.23450678,0.00016174,2]
[365176915,1749514799611,-2.90697693,0.00016437,2]
[365176916,1749514799637,-14.82843521,0.00016437,2]
[365176917,1749514801848,-177.80822872,0.00016437,2]
[365176918,1749514814446,-441.5234536,0.00016093,2]
[365176919,1749514816059,-292.77322553,0.00016093,2]
[365176920,1749514818517,-216.82149945,0.00016093,2]
[365176921,1749514821216,-173.86162008,0.00016093,2]
[365176922,1749514825085,-250.0,0.00016093,2]
[365176923,1749514828274,-301.47368583,0.00016093,2]
[365176924,1749514829841,-157.91991573,0.00016093,2]
[365176925,1749514831444,-306.46735254,0.00016093,2]
[365176926,1749514833461,-214.0,0.00016093,2]
[365176927,1749514835666,-292.11992471,0.00016093,2]
[365176928,1749514838348,-151.0,0.00016093,2]
[365176929,1749514839978,-79.31412053,0.00016093,2]
[365176930,1749514859232,150.0,0.00016004,7]
[365176931,1749514879366,677.915479,0.00015983,2]
[365176932,1749514879394,428.159348,0.00015983,2]
[365176934,1749514978890,-268.60379067,0.00016064,2]
[365176935,1749514980557,-231.39620933,0.00016064,2]
[365176936,1749514980580,-68.76007328,0.000162,2]
[365176937,1749514983859,-225.97007529,0.000162,2]
[365176938,1749514986611,-205.26985143,0.000162,2]
[365176939,1749515074191,-380.79442993,0.00016064,2]
[365176940,1749515078127,250.0,0.00015622,2]
[365176941,1749515080005,-119.20557007,0.00016064,2]
[365176945,1749515229049,400.0,0.000169,6]
[365176946,1749515275370,945.18,0.00013704,2]
[365176947,1749515275565,945.18,0.00015968,2]
[365176948,1749515291771,202.0,0.00015685,2]
[365176957,1749515357659,328.55,0.00013699,2]
[365176965,1749515385157,312.03,0.0001562,2]
[365176984,1749515432249,-300.0,0.00016418,2]
[365176986,1749515432261,-334.1542531,0.00016436,2]
[365176987,1749515432307,-865.8457469,0.00016436,2]
[365176988,1749515432318,-300.0,0.00016436,2]
[365176989,1749515432328,-203.53044056,0.00016437,2]
[365176990,1749515432339,-129.83896918,0.00016437,2]
[365176991,1749515432352,-370.16103082,0.00016437,2]
[365176992,1749515432362,-327.46613618,0.00016437,2]
[365176993,1749515432374,-172.53386382,0.00016437,2]
[365176994,1749515432385,-500.0,0.00016437,2]
[365176995,1749515432396,-500.0,0.00016437,2]
[365176996,1749515432406,-500.0,0.00016437,2]
[365176997,1749515432417,-500.0,0.00016437,2]
[365176998,1749515432427,-500.0,0.00016437,2]
[365176999,1749515432438,-250.0,0.00016437,2]
[365177000,1749515432449,-500.0,0.00016437,2]
[365177001,1749515432459,-250.0,0.00016437,2]
[365177002,1749515432470,-500.0,0.00016437,2]
[365177003,1749515432484,-500.0,0.00016437,2]
[365177004,1749515432494,-500.0,0.00016437,2]
[365177005,1749515432506,-300.0,0.00016437,2]
[365177006,1749515432516,-500.0,0.00016437,2]
[365177007,1749515432526,-500.0,0.00016437,2]
[365177008,1749515432536,-500.0,0.00016437,2]
[365177009,1749515432546,-344.36366682,0.00016437,2]
[365177010,1749515432560,-155.63633318,0.00016437,2]
[365177011,1749515432571,-500.0,0.00016437,2]
[365177012,1749515432581,-500.0,0.00016437,2]
[365177013,1749515432591,-500.0,0.00016437,2]
[365177014,1749515432601,-1946.66171126,0.00016437,2]
[365177015,1749515432611,-188.23187469,0.00016437,2]
[365177016,1749515432622,-158.65837869,0.00016437,2]
[365177017,1749515432632,-357.54552178,0.00016437,2]
[365177018,1749515432644,-175.63613197,0.00016437,2]
[365177020,1749515432654,-500.0,0.00016437,2]
[365177021,1749515432666,-500.0,0.00016437,2]
[365177023,1749515432676,-500.0,0.00016437,2]
[365177025,1749515432687,-600.0,0.00016437,2]
[365177027,1749515432697,-500.0,0.00016437,2]
[365177029,1749515432707,-500.0,0.00016437,2]
[365177031,1749515432718,-500.0,0.00016437,2]
[365177033,1749515432730,-499.28032,0.00016437,2]
[365177035,1749515432741,-500.0,0.00016437,2]
[365177038,1749515432752,-259.94467364,0.00016437,2]
[365177040,1749515432762,-300.0,0.00016437,2]
[365177042,1749515432772,-500.0,0.00016438,2]
[365177045,1749515432782,-500.0,0.00016438,2]
[365177047,1749515432792,-500.67313326,0.00016438,2]
[365177049,1749515432802,-447.79642996,0.00016438,2]
[365177051,1749515432812,-528.3,0.00016438,2]
[365177053,1749515432822,-490.0,0.00016438,2]
[365177055,1749515432833,-490.0,0.00016438,2]
[365177057,1749515432843,-490.0,0.00016438,2]
[365177059,1749515432854,-604.74340359,0.00016438,2]
[365177061,1749515432864,-490.0,0.00016438,2]
[365177063,1749515432874,-490.0,0.00016438,2]
[365177064,1749515432884,-490.0,0.00016438,2]
[365177065,1749515432894,-490.0,0.00016438,2]
[365177067,1749515432905,-490.0,0.00016438,2]
[365177069,1749515432917,-490.0,0.00016438,2]
[365177071,1749515432929,-490.0,0.00016438,2]
[365177074,1749515432939,-490.0,0.00016438,2]
[365177076,1749515432950,-490.0,0.00016438,2]
[365177077,1749515432960,-490.0,0.00016438,2]
[365177078,1749515432971,-490.0,0.00016438,2]
[365177079,1749515432982,-490.0,0.00016438,2]
[365177080,1749515432993,-490.0,0.00016438,2]
[365177081,1749515433003,-317.35,0.00016438,2]
[365177082,1749515433014,-490.0,0.00016438,2]
[365177083,1749515433026,-490.0,0.00016438,2]
[365177084,1749515433037,-288.02271482,0.00016438,2]
[365177085,1749515433049,-490.0,0.00016438,2]
[365177086,1749515433061,-490.0,0.00016438,2]
[365177087,1749515433073,-490.0,0.00016438,2]
[365177088,1749515433084,-490.0,0.00016438,2]
[365177089,1749515433096,-490.0,0.00016438,2]
[365177090,1749515433107,-490.0,0.00016438,2]
[365177091,1749515433119,-667.29,0.00016438,2]
[365177092,1749515433130,-468.40222646,0.00016438,2]
[365177093,1749515433142,-545.64,0.00016438,2]
[365177094,1749515433153,-490.0,0.00016438,2]
[365177095,1749515433163,-490.0,0.00016438,2]
[365177096,1749515433178,-490.0,0.00016438,2]
[365177097,1749515433189,-615.16201856,0.00016438,2]
[365177098,1749515433201,-490.0,0.00016438,2]
[365177099,1749515433212,-490.0,0.00016438,2]
[365177100,1749515433224,-490.0,0.00016438,2]
[365177101,1749515433235,-490.0,0.00016438,2]
[365177102,1749515433247,-325.12306555,0.00016438,2]
[365177104,1749515433259,-490.0,0.00016438,2]
[365177106,1749515433270,-490.0,0.00016438,2]
[365177108,1749515433281,-490.0,0.00016438,2]
[365177110,1749515433293,-490.0,0.00016438,2]
[365177112,1749515433304,-490.0,0.00016438,2]
[365177114,1749515433316,-490.0,0.00016438,2]
[365177116,1749515433327,-490.0,0.00016438,2]
[365177119,1749515433338,-490.0,0.00016438,2]
[365177121,1749515433349,-490.0,0.00016438,2]
[365177123,1749515433360,-490.0,0.00016438,2]
[365177125,1749515433370,-490.0,0.00016438,2]
[365177127,1749515433380,-490.0,0.00016438,2]
[365177129,1749515433393,-490.0,0.00016438,2]
[365177131,1749515433404,-490.0,0.00016438,2]
[365177133,1749515433418,-490.0,0.00016438,2]
[365177135,1749515433429,-204.87393609,0.00016438,2]
[365177137,1749515433440,-534.95776242,0.00016438,2]
[365177140,1749515433452,-664.97,0.00016438,2]
[365177142,1749515433465,-490.0,0.00016438,2]
[365177144,1749515433479,-410.04936753,0.00016438,2]
[365177146,1749515433490,-470.1751206,0.00016438,2]
[365177148,1749515433503,-490.0,0.00016438,2]
[365177150,1749515433514,-490.0,0.00016438,2]
[365177152,1749515433526,-490.0,0.00016438,2]
[365177154,1749515433537,-490.0,0.00016438,2]
[365177156,1749515433548,-91.2321531,0.00016438,2]
[365177159,1749515433564,-398.7678469,0.00016438,2]
[365177161,1749515433574,-490.0,0.00016438,2]
[365177163,1749515433585,-651.58,0.00016438,2]
[365177165,1749515433597,-490.0,0.00016438,2]
[365177167,1749515433607,-490.0,0.00016438,2]
[365177169,1749515433618,-490.0,0.00016438,2]
[365177171,1749515433629,-490.0,0.00016438,2]
[365177174,1749515433641,-490.0,0.00016438,2]
[365177176,1749515433652,-216.82149945,0.00016438,2]
[365177178,1749515433663,-490.0,0.00016438,2]
[365177180,1749515433676,-411.86,0.00016438,2]
[365177182,1749515433686,-490.0,0.00016438,2]
[365177184,1749515433698,-602.21,0.00016438,2]
[365177186,1749515433709,-568.01,0.00016438,2]
[365177188,1749515433720,-490.0,0.00016438,2]
[365177190,1749515433731,-625.15,0.00016438,2]
[365177193,1749515433742,-490.0,0.00016438,2]
[365177196,1749515433767,-490.0,0.00016438,2]
[365177198,1749515433779,-490.0,0.00016438,2]
[365177200,1749515433790,-490.0,0.00016438,2]
[365177203,1749515433800,-490.0,0.00016438,2]
[365177205,1749515433811,-490.0,0.00016438,2]
[365177207,1749515433821,-490.0,0.00016438,2]
[365177209,1749515433831,-490.0,0.00016438,2]
[365177211,1749515433841,-490.0,0.00016438,2]
[365177212,1749515433851,-490.0,0.00016438,2]
[365177215,1749515433862,-490.0,0.00016438,2]
[365177217,1749515433873,-490.0,0.00016438,2]
[365177265,1749515434360,-635.22,0.00016438,2]
[365177268,1749515434383,-490.0,0.00016438,2]
[365177271,1749515434405,-490.0,0.00016438,2]
[365177274,1749515434415,-490.0,0.00016438,2]
[365177276,1749515434429,-490.0,0.00016438,2]
[365177278,1749515434439,-490.0,0.00016438,2]
[365177280,1749515434449,-490.0,0.00016438,2]
[365177282,1749515434461,-1453.44,0.00016438,2]
[365177283,1749515434472,-490.0,0.00016438,2]
[365177285,1749515434482,-490.0,0.00016438,2]
[365177287,1749515434492,-883.87,0.00016438,2]
[365177290,1749515434503,-490.0,0.00016438,2]
[365177291,1749515434514,-490.0,0.00016438,2]
[365177293,1749515434523,-509.84,0.00016438,2]
[365177295,1749515434533,-490.0,0.00016438,2]
[365177297,1749515434542,-490.0,0.00016438,2]
[365177299,1749515434553,-490.0,0.00016438,2]
[365177301,1749515434563,-490.0,0.00016438,2]
[365177303,1749515434572,-490.0,0.00016438,2]
[365177305,1749515434582,-490.0,0.00016438,2]
[365177307,1749515434591,-490.0,0.00016438,2]
[365177309,1749515434600,-490.0,0.00016438,2]
[365177311,1749515434609,-490.0,0.00016438,2]
[365177312,1749515434618,-490.0,0.00016438,2]
[365177313,1749515434627,-490.0,0.00016438,2]
[365177314,1749515434637,-578.07,0.00016438,2]
[365177315,1749515434648,-165.70443047,0.00016438,2]
[365177316,1749515434659,-490.0,0.00016438,2]
[365177317,1749515434670,-490.0,0.00016438,2]
[365177318,1749515434680,-490.0,0.00016438,2]
[365177319,1749515434689,-490.0,0.00016438,2]
[365177320,1749515434698,-490.0,0.00016438,2]
[365177321,1749515434707,-639.04,0.00016438,2]
[365177322,1749515434717,-490.0,0.00016438,2]
[365177323,1749515434726,-490.0,0.00016438,2]
[365177325,1749515434736,-490.0,0.00016438,2]
[365177327,1749515434745,-490.0,0.00016438,2]
[365177329,1749515434755,-490.0,0.00016438,2]
[365177332,1749515434765,-283.84656089,0.00016438,2]
[365177334,1749515434774,-490.0,0.00016438,2]
[365177336,1749515434783,-490.0,0.00016438,2]
[365177338,1749515434792,-490.0,0.00016438,2]
[365177340,1749515434801,-557.64,0.00016438,2]
[365177341,1749515434810,-610.44,0.00016438,2]
[365177344,1749515434819,-490.0,0.00016438,2]
[365177346,1749515434833,-1634.76,0.00016438,2]
[365177348,1749515434842,-600.78,0.00016438,2]
[365177350,1749515434851,-490.0,0.00016438,2]
[365177352,1749515434861,-490.0,0.00016438,2]
[365177354,1749515434872,-490.0,0.00016438,2]
[365177356,1749515434882,-490.0,0.00016438,2]
[365177358,1749515434892,-490.0,0.00016438,2]
[365177360,1749515434901,-490.0,0.00016438,2]
[365177362,1749515434911,-490.0,0.00016438,2]
[365177364,1749515434923,-490.0,0.00016438,2]
[365177366,1749515434933,-490.0,0.00016438,2]
[365177369,1749515434943,-490.0,0.00016438,2]
[365177370,1749515434954,-490.0,0.00016438,2]
[365177373,1749515434964,-490.0,0.00016438,2]
[365177375,1749515434974,-967.19,0.00016438,2]
[365177377,1749515434984,-490.0,0.00016438,2]
[365177379,1749515434994,-490.0,0.00016438,2]
[365177381,1749515435004,-490.0,0.00016438,2]
[365177383,1749515435014,-490.0,0.00016438,2]
[365177385,1749515435023,-490.0,0.00016438,2]
[365177387,1749515435032,-490.0,0.00016438,2]
[365177389,1749515435042,-523.41271758,0.00016438,2]
[365177391,1749515435052,-490.0,0.00016438,2]
[365177393,1749515435062,-490.0,0.00016438,2]
[365177395,1749515435071,-5198.99096561,0.00016438,2]
[365177399,1749515435105,-0.1232799,0.00016438,2]
[365177401,1749515435117,-11011.90575449,0.00016438,2]
[365177403,1749515435127,-490.0,0.00016438,2]
[365177405,1749515435135,-2301.41,0.00016438,2]
[365177407,1749515435145,-490.0,0.00016438,2]
[365177409,1749515435154,-490.0,0.00016438,2]
[365177411,1749515435165,-490.0,0.00016438,2]
[365177413,1749515435177,-1535.2,0.00016438,2]
[365177415,1749515435186,-490.0,0.00016438,2]
[365177417,1749515435195,-490.0,0.00016438,2]
[365177419,1749515435205,-490.0,0.00016438,2]
[365177421,1749515435214,-490.0,0.00016438,2]
[365177423,1749515435224,-490.0,0.00016438,2]
[365177425,1749515435233,-490.0,0.00016438,2]
[365177427,1749515435243,-329.49723254,0.00016438,2]
[365177430,1749515435253,-490.0,0.00016438,2]
[365177432,1749515435263,-490.0,0.00016438,2]
[365177434,1749515435273,-490.0,0.00016438,2]
[365177435,1749515435282,-601.86,0.00016438,2]
[365177438,1749515435292,-1389.5,0.00016438,2]
[365177440,1749515435301,-490.0,0.00016438,2]
[365177442,1749515435312,-490.0,0.00016438,2]
[365177444,1749515435322,-490.0,0.00016438,2]
[365177446,1749515435332,-151.0,0.00016459,2]
[365177448,1749515435342,-664.57640896,0.00016501,2]
[365177450,1749515435352,-4234.42283859,0.00016501,2]
[365177452,1749515435362,-2471.63215692,0.00016502,2]
[365177454,1749515435372,-175.78959237,0.00016502,2]
[365177456,1749515435381,-500.0,0.00016573,2]
[365177458,1749515435390,-500.0,0.00016573,2]
[365177460,1749515435400,-150.0,0.00016577,2]
[365177462,1749515435409,-150.0,0.00016589,2]
[365177464,1749515435418,-150.0,0.00016592,2]
[365177465,1749515435429,-150.0,0.00016592,2]
[365177467,1749515435439,-150.0,0.00016599,2]
[365177469,1749515435449,-16588.4628175,0.000166,2]
[365177753,1749515438297,-393.61453365,0.00016438,2]
[365177766,1749515438410,-243.65546635,0.00016438,2]
[365177768,1749515438420,-490.0,0.00016438,2]
[365177770,1749515438432,-389.53391541,0.00016438,2]
[365177775,1749515438470,-100.46608459,0.00016438,2]
[365177777,1749515438479,-1187.32207541,0.000166,2]
[365177779,1749515438491,-1562.60042115,0.000166,2]
[365177784,1749515438528,-1194.80750344,0.000166,2]
[365178079,1749515441687,206.0,0.00015685,2]
[365178142,1749515443478,-490.0,0.00016438,2]
[365178143,1749515443488,-163.40318807,0.00016438,2]
[365178146,1749515446336,-326.59681193,0.00016438,2]
[365178147,1749515446346,-490.0,0.00016438,2]
[365178148,1749515446357,-105.84271475,0.00016438,2]
[365178149,1749515446369,-384.15728525,0.00016438,2]
[365178150,1749515446379,-490.0,0.00016438,2]
[365178151,1749515446389,-624.43,0.00016438,2]
[365178152,1749515446399,-1192.9127147,0.000166,2]
[365178153,1749515446411,-675.21423299,0.000166,2]
[365178154,1749515446432,-1352.99965003,0.000166,2]
[365178155,1749515446444,-2315.1,0.000166,2]
[365178156,1749515446475,-295.12367534,0.000166,2]
[365178157,1749515446511,-3857.39176998,0.000166,2]
[365178158,1749515446523,-18425.02667075,0.000166,2]
[365178159,1749515446628,-490.0,0.00016438,2]
[365178160,1749515446638,-17109.31112271,0.000166,2]
[365178161,1749515446680,-1210.14473516,0.000166,2]
[365178176,1749515471215,201.0,0.00015685,2]
[365178177,1749515475655,166.2,0.00015736,2]
[365178178,1749515603460,1000.0,0.000246,120]
[365178179,1749515646343,-166.34161985,0.00016211,2]
[365178180,1749515652263,-0.33838015,0.00016211,2]
[365178181,1749515695195,15.700652,0.00015631,2]
[365178182,1749515695218,959.199348,0.00015631,2]
[365178183,1749515716668,1000.0,0.00015628,2]
[365178184,1749515728248,163.61,0.00015631,3]
[365178185,1749515728472,530.19,0.00015631,2]
[365178186,1749515803191,225.18,0.00015621,2]
[365178187,1749515831735,1121.820652,0.00015635,2]
[365178188,1749515831757,3979.619348,0.00015635,2]
[365178189,1749515891953,150.0,0.00015621,7]
[365178190,1749515940133,1370.0,0.0002465,120]
[365178191,1749515999544,224.0,0.0002465,120]
[365178192,1749516012031,663.0,0.00015268,2]
[365178193,1749516012316,663.0,0.0001572,2]
[365178194,1749516013401,-219.55820622,0.00016172,3]
[365178195,1749516016196,-162.86264759,0.00016172,3]
[365178196,1749516017761,-204.24566359,0.00016172,3]
[365178197,1749516021738,-76.3334826,0.00016172,3]
[365178198,1749516023514,500.0,0.00024649,120]
[365178199,1749516058055,1142.0,0.00024658,120]
[365178200,1749516071949,17170.4,0.00015576,2]
[365178201,1749516084613,183.0,0.00016,2]
[365178202,1749516261721,938.57,0.00013656,2]
[365178203,1749516261907,938.57,0.0001592,2]
[365178204,1749516371789,643.0,0.00015624,2]
[365178205,1749516372907,-165.42367025,0.00016072,2]
[365178206,1749516375019,-180.93385141,0.00016072,2]
[365178207,1749516378372,-288.37076245,0.00016072,2]
[365178208,1749516382955,-8.27171589,0.00016072,2]
[365178209,1749516392739,250.0,0.0001555,2]
[365178210,1749516417850,200.0,0.00015472,2]
[365178211,1749516425827,400.0,0.000169,6]
[365178212,1749516444561,200.0,0.0002465,120]
[365178213,1749516522499,150.0,0.00017052,5]
[365178214,1749516540153,166.09,0.00015532,2]
[365178215,1749516549745,150.0,0.0002465,120]
[365178216,1749516579579,329.38,0.00013699,2]
[365178232,1749516631436,-174.21786408,0.00016238,2]
[365178233,1749516631445,-473.57551946,0.00016337,2]
[365178234,1749516631490,-76.42448054,0.00016337,2]
[365178235,1749516631500,-300.0,0.00016337,2]
[365178236,1749516631509,-1200.0,0.00016337,2]
[365178237,1749516631519,-342.77866077,0.00016338,2]
[365178238,1749516631531,-574.6,0.00016338,2]
[365178239,1749516631542,-864.14261092,0.00016338,2]
[365178240,1749516631651,-300.0,0.00016338,2]
[365178241,1749516631706,-1729.45928305,0.00016338,2]
[365178242,1749516631715,-541.9937605,0.00016338,2]
[365178243,1749516631762,-458.0062395,0.00016338,2]
[365178244,1749516631772,-2500.0,0.00016338,2]
[365178245,1749516631782,-500.0,0.00016338,2]
[365178246,1749516631791,-9562.6176246,0.00016338,2]
[365178247,1749516631803,-2728.5925892,0.00016338,2]
[365178248,1749516631814,-798.32798818,0.00016338,2]
[365178752,1749516637750,-1178.9475446,0.00016338,2]
[365178773,1749516639654,-427.0201302,0.00016338,2]
[365178785,1749516642542,-21387.12542322,0.00016338,2]
[365178787,1749516642552,-1507.9057,0.00016338,2]
[365178789,1749516642562,-175.78959237,0.00016402,2]
[365178791,1749516642572,-151.0,0.00016405,2]
[365178793,1749516642581,-151.0,0.00016405,2]
[365178795,1749516642591,-151.0,0.00016405,2]
[365178797,1749516642600,-361.99,0.00016428,2]
[365178799,1749516642609,-361.99,0.00016428,2]
[365178801,1749516642620,-95.30854951,0.00016428,2]
[365178814,1749516642752,-55.69145049,0.00016428,2]
[365178815,1749516642762,-250.0,0.00016435,2]
[365178817,1749516642771,-250.0,0.00016435,2]
[365178819,1749516642780,-500.0,0.00016435,2]
[365178821,1749516642789,-532.90745606,0.00016435,2]
[365178822,1749516642798,-250.28186524,0.00016437,2]
[365178823,1749516642807,-150.0,0.00016437,2]
[365178824,1749516642816,-460.0,0.00016438,2]
[365178825,1749516642825,-480.0,0.00016438,2]
[365178826,1749516642834,-480.0,0.00016438,2]
[365178827,1749516642842,-480.0,0.00016438,2]
[365178828,1749516642851,-480.0,0.00016438,2]
[365178829,1749516642860,-579.97129596,0.00016438,2]
[365178830,1749516642873,-480.0,0.00016438,2]
[365178831,1749516642883,-480.0,0.00016438,2]
[365178832,1749516642892,-480.0,0.00016438,2]
[365178833,1749516642901,-480.0,0.00016438,2]
[365178834,1749516642913,-480.0,0.00016438,2]
[365178835,1749516642922,-480.0,0.00016438,2]
[365178836,1749516642932,-480.0,0.00016438,2]
[365178837,1749516642943,-480.0,0.00016438,2]
[365178838,1749516642953,-480.0,0.00016438,2]
[365178839,1749516642962,-480.0,0.00016438,2]
[365178840,1749516642971,-480.0,0.00016438,2]
[365178841,1749516642980,-480.0,0.00016438,2]
[365178842,1749516642990,-345.21193225,0.00016438,2]
[365178846,1749516645745,-134.78806775,0.00016438,2]
[365178847,1749516645754,-529.70489739,0.00016438,2]
[365178848,1749516645763,-490.0,0.00016438,2]
[365178849,1749516645772,-432.82139301,0.00016438,2]
[365178850,1749516645781,-480.0,0.00016438,2]
[365178851,1749516645795,-71.48516292,0.00016438,2]
[365178852,1749516645810,-408.51483708,0.00016438,2]
[365178853,1749516645823,-480.0,0.00016438,2]
[365178854,1749516645837,-480.0,0.00016438,2]
[365178855,1749516645850,-100.16162484,0.00016438,2]
[365178857,1749516645865,-466.67392864,0.00016438,2]
[365178859,1749516645878,-480.0,0.00016438,2]
[365178861,1749516645889,-480.0,0.00016438,2]
[365178863,1749516645900,-460.0,0.00016438,2]
[365178865,1749516645913,-480.0,0.00016438,2]
[365178868,1749516645924,-354.96465535,0.00016438,2]
[365178870,1749516645938,-125.03534465,0.00016438,2]
[365178872,1749516645954,-480.0,0.00016438,2]
[365178874,1749516645965,-276.58465535,0.00016438,2]
[365178877,1749516645979,-203.41534465,0.00016438,2]
[365178879,1749516645990,-463.53218888,0.00016438,2]
[365178881,1749516646002,-494.45403773,0.00016438,2]
[365178884,1749516646014,-480.0,0.00016438,2]
[365178886,1749516646025,-490.0,0.00016438,2]
[365178889,1749516646038,-460.0,0.00016438,2]
[365178891,1749516646048,-480.0,0.00016438,2]
[365178893,1749516646059,-480.0,0.00016438,2]
[365178895,1749516646070,-480.0,0.00016438,2]
[365178897,1749516646079,-480.0,0.00016438,2]
[365178898,1749516646090,-354.45999569,0.00016438,2]
[365178899,1749516646123,-125.54000431,0.00016438,2]
[365178900,1749516646135,-480.0,0.00016438,2]
[365178901,1749516646146,-482.2760617,0.00016438,2]
[365178902,1749516646159,-481.38419857,0.00016438,2]
[365178903,1749516646169,-307.64209729,0.00016438,2]
[365178907,1749516663675,158.75546221,0.00024658,120]
[365178908,1749516679026,171.43,0.00012481,2]
[365178909,1749516679071,1000.0,0.00015601,2]